fUST/lending_fUST_20250911
["ID","MTS","AMOUNT","RATE_DAILY","PERIOD"]
[384804421,1757560238119,-114.46403054,0.00013937,2]
[384804422,1757560238129,-480.0,0.00013937,2]
[384804423,1757560238138,-478.05642657,0.00013937,2]
[384804424,1757560238147,-81.47954289,0.00013937,2]
[384804425,1757560238158,-398.52045711,0.00013937,2]
[384804426,1757560238168,-994.46,0.00013937,2]
[384804427,1757560238177,-480.0,0.00013937,2]
[384804428,1757560238187,-2157.2,0.00013937,2]
[384804429,1757560238196,-480.0,0.00013937,2]
[384804430,1757560238205,-480.0,0.00013937,2]
[384804431,1757560238214,-2000.0,0.00013938,2]
[384804432,1757560238223,-2000.0,0.00013938,2]
[384804433,1757560238232,-2000.0,0.00013938,2]
[384804434,1757560238242,-2000.0,0.00013938,2]
[384804435,1757560238251,-2000.0,0.00013938,2]
[384804436,1757560238260,-2000.0,0.00013938,2]
[384804437,1757560238270,-449.81954292,0.00013938,2]
[384804438,1757560238281,-594.82644238,0.00013938,2]
[384804439,1757560238293,-955.3540147,0.00013938,2]
[384804440,1757560238302,-1608.38404185,0.00013938,2]
[384804452,1757560324054,-177.01210144,0.00013935,2]
[384804454,1757560347035,177.01210144,0.00013796,2]
[384804455,1757560438454,300.0,0.00013791,2]
[384804456,1757560449440,158.47506793,0.00013836,2]
[384804457,1757560454326,300.0,0.00013791,2]
[384804458,1757560461468,636.28,0.00012329,2]
[384804459,1757560462497,300.0,0.00013791,2]
[384804460,1757560471989,530.23,0.00012329,2]
[384804461,1757560472219,300.0,0.00013791,2]
[384804462,1757560480500,300.0,0.00013791,2]
[384804463,1757560482424,441.86,0.00012329,2]
[384804464,1757560489378,300.0,0.00013791,2]
[384804465,1757560492854,368.22,0.00012329,2]
[384804466,1757560498406,300.0,0.00013791,2]
[384804467,1757560503314,306.85,0.00012329,2]
[384804468,1757560507735,2100.0,0.00013791,2]
[384804469,1757560514026,255.71,0.00012329,2]
[384804470,1757560516266,2580.0,0.00013791,2]
[384804471,1757560524473,213.09,0.00012329,2]
[384804472,1757560525869,2580.0,0.00013791,2]
[384804473,1757560529423,10000.0,0.00012936,2]
[384804474,1757560530110,168.0,0.00013581,2]
[384804475,1757560533991,1686.23220681,0.00013791,2]
[384804476,1757560535577,177.57,0.00012329,2]
[384804477,1757560542492,3540.0,0.00013791,2]
[384804478,1757560546032,887.9,0.00012329,2]
[384804479,1757560551185,1209.94597852,0.00013791,2]
[384804481,1757560559701,167.683019,0.00013699,2]
[384804482,1757560567630,300.0,0.0001379,2]
[384804484,1757560591994,300.0,0.0001379,2]
[384804485,1757560616077,300.0,0.0001379,2]
[384804486,1757560629971,303.5155279,0.00013831,2]
[384804487,1757560639758,1500.0,0.0001379,2]
[384804488,1757560663823,1500.0,0.0001379,2]
[384804489,1757560688188,1500.0,0.0001379,2]
[384804490,1757560711650,1500.0,0.0001379,2]
[384804491,1757560735524,1500.0,0.0001379,2]
[384804492,1757560740034,666.0,0.00012935,2]
[384804495,1757560752962,1000.0,0.00012935,2]
[384804496,1757560759311,1500.0,0.0001379,2]
[384804497,1757560768196,1500.0,0.0001379,2]
[384804498,1757560769023,822.8301603,0.00012935,2]
[384804499,1757560784523,1500.0,0.0001379,2]
[384804500,1757560792693,355.90013301,0.0001379,2]
[384804503,1757560809052,234.3341148,0.0001379,2]
[384804504,1757560821484,-410.28862868,0.0001383,2]
[384804508,1757561012517,485.62602417,0.00013829,2]
[384804511,1757561047577,9419.3413231,0.00012933,2]
[384804512,1757561048148,-184.66432043,0.00013928,2]
[384804513,1757561064625,184.66432043,0.00013789,2]
[384804514,1757561073004,272.37949959,0.00013789,2]
[384804515,1757561082032,621.0,0.00013789,2]
[384804517,1757561127514,172.35843111,0.00013828,2]
[384804518,1757561159569,869.6681726,0.00013788,2]
[384804527,1757561173213,-514.52120502,0.00013511,2]
[384804528,1757561173241,-257.26060251,0.00013512,2]
[384804531,1757561197857,535.71831103,0.00013829,2]
[384804551,1757561340652,230.91941122,0.00013751,2]
[384804553,1757561389045,613.0449336,0.00013828,2]
[384804576,1757561432091,-624.52101774,0.0001389,2]
[384804577,1757561432149,-3658.95592757,0.0001389,2]
[384804578,1757561432158,-300.0,0.00013925,2]
[384804579,1757561432167,-300.0,0.00013925,2]
[384804580,1757561432176,-300.0,0.00013925,2]
[384804582,1757561432185,-1200.0,0.00013925,2]
[384804583,1757561432195,-846.96613202,0.00013926,2]
[384804584,1757561432204,-530.95967032,0.00013926,2]
[384804586,1757561432213,-417.15472785,0.00013926,2]
[384804588,1757561432222,-233.10680167,0.00013926,2]
[384804590,1757561432231,-217.69300629,0.00013926,2]
[384804592,1757561432240,-160.0,0.00013926,2]
[384804594,1757561432249,-1015.0,0.00013927,2]
[384804596,1757561432259,-481.70594281,0.00013927,2]
[384804598,1757561432268,-502.4784306,0.00013927,2]
[384804600,1757561432276,-483.30839588,0.00013927,2]
[384804602,1757561432286,-480.0,0.00013927,2]
[384804604,1757561432295,-751.31355251,0.00013928,2]
[384804606,1757561432304,-500.0,0.00013928,2]
[384804608,1757561432314,-500.0,0.00013928,2]
[384804610,1757561432323,-500.0,0.00013928,2]
[384804612,1757561432332,-500.0,0.00013928,2]
[384804614,1757561432341,-500.0,0.00013928,2]
[384804616,1757561432350,-500.0,0.00013928,2]
[384804617,1757561432359,-500.0,0.00013928,2]
[384804619,1757561432368,-500.0,0.00013928,2]
[384804621,1757561432378,-500.0,0.00013928,2]
[384804623,1757561432388,-327.62973956,0.00013928,2]
[384804625,1757561432401,-500.0,0.00013928,2]
[384804627,1757561432410,-442.17621303,0.00013928,2]
[384804629,1757561432419,-500.0,0.00013928,2]
[384804631,1757561432429,-378.30919395,0.00013928,2]
[384804633,1757561432438,-393.64152507,0.00013928,2]
[384804635,1757561432447,-500.0,0.00013928,2]
[384804637,1757561432456,-213.98440886,0.00013928,2]
[384804639,1757561432465,-500.0,0.00013928,2]
[384804641,1757561432474,-500.0,0.00013928,2]
[384804643,1757561432483,-500.0,0.00013928,2]
[384804645,1757561432493,-500.0,0.00013928,2]
[384804647,1757561432502,-500.0,0.00013928,2]
[384804649,1757561432511,-500.0,0.00013928,2]
[384804651,1757561432520,-500.0,0.00013928,2]
[384804653,1757561432532,-500.0,0.00013928,2]
[384804655,1757561432542,-500.0,0.00013928,2]
[384804657,1757561432551,-500.0,0.00013928,2]
[384804659,1757561432560,-553.8740024,0.00013928,2]
[384804661,1757561432570,-500.0,0.00013928,2]
[384804663,1757561432579,-500.0,0.00013928,2]
[384804665,1757561432589,-500.0,0.00013928,2]
[384804667,1757561432599,-500.0,0.00013928,2]
[384804669,1757561432608,-470.40671243,0.00013928,2]
[384804671,1757561432618,-500.0,0.00013928,2]
[384804673,1757561432628,-500.0,0.00013928,2]
[384804675,1757561432638,-500.0,0.00013928,2]
[384804677,1757561432647,-500.0,0.00013928,2]
[384804679,1757561432657,-500.0,0.00013928,2]
[384804682,1757561432667,-500.0,0.00013928,2]
[384804684,1757561432678,-500.0,0.00013928,2]
[384804686,1757561432687,-320.37961674,0.00013928,2]
[384804688,1757561432698,-500.0,0.00013928,2]
[384804690,1757561432708,-500.0,0.00013928,2]
[384804692,1757561432717,-500.0,0.00013928,2]
[384804693,1757561432727,-500.0,0.00013928,2]
[384804695,1757561432737,-500.0,0.00013928,2]
[384804696,1757561432748,-500.0,0.00013928,2]
[384804697,1757561432758,-500.0,0.00013928,2]
[384804698,1757561432767,-500.0,0.00013928,2]
[384804699,1757561432778,-500.0,0.00013928,2]
[384804700,1757561432787,-500.0,0.00013928,2]
[384804701,1757561432796,-480.0,0.00013928,2]
[384804702,1757561432805,-539.89,0.00013928,2]
[384804703,1757561432814,-490.98460683,0.00013928,2]
[384804704,1757561432824,-480.0,0.00013928,2]
[384804705,1757561432833,-480.0,0.00013928,2]
[384804707,1757561432842,-486.61965802,0.00013928,2]
[384804708,1757561432851,-484.63827968,0.00013928,2]
[384804709,1757561432861,-480.0,0.00013928,2]
[384804710,1757561432979,-483.22558979,0.00013928,2]
[384804711,1757561432991,-980.29,0.00013928,2]
[384804712,1757561433000,-620.98,0.00013928,2]
[384804713,1757561433010,-481.86494248,0.00013928,2]
[384804714,1757561433019,-497.7425171,0.00013928,2]
[384804715,1757561433030,-480.0,0.00013928,2]
[384804716,1757561433039,-482.49899168,0.00013928,2]
[384804717,1757561433049,-480.0,0.00013928,2]
[384804718,1757561433059,-29.91698162,0.00013928,2]
[384804720,1757561438068,-480.0,0.00013927,2]
[384804721,1757561438078,-450.08301838,0.00013928,2]
[384804722,1757561438087,-499.87836313,0.00013928,2]
[384804723,1757561438097,-500.51567214,0.00013928,2]
[384804724,1757561438105,-486.04962103,0.00013928,2]
[384804725,1757561438115,-553.88,0.00013928,2]
[384804726,1757561438125,-480.0,0.00013928,2]
[384804727,1757561438135,-480.0,0.00013928,2]
[384804728,1757561438144,-485.14878944,0.00013928,2]
[384804729,1757561438153,-482.64236705,0.00013928,2]
[384804730,1757561438162,-480.0,0.00013928,2]
[384804731,1757561438171,-586.44,0.00013928,2]
[384804732,1757561438180,-488.63869117,0.00013928,2]
[384804733,1757561438189,-484.9143265,0.00013928,2]
[384804734,1757561438198,-482.36353155,0.00013928,2]
[384804735,1757561438207,-388.92561706,0.00013928,2]
[384804736,1757561438227,-101.0970406,0.00013928,2]
[384804737,1757561438236,-485.2936523,0.00013928,2]
[384804738,1757561438245,-481.94406272,0.00013928,2]
[384804739,1757561438254,-480.0,0.00013928,2]
[384804740,1757561438263,-172.37654532,0.00013928,2]
[384804741,1757561438275,-316.38553872,0.00013928,2]
[384804742,1757561438285,-76.65727725,0.00013928,2]
[384804743,1757561438296,-408.6117688,0.00013928,2]
[384804744,1757561438305,-482.22745851,0.00013928,2]
[384804745,1757561438314,-28.52406301,0.00013928,2]
[384804768,1757561440102,-276.8099194,0.00013928,2]
[384804769,1757561440112,-480.0,0.00013928,2]
[384804771,1757561440121,-482.72214709,0.00013928,2]
[384804772,1757561440130,-481.59284482,0.00013928,2]
[384804774,1757561440140,-483.00655726,0.00013928,2]
[384804776,1757561440149,-5549.77,0.00013928,2]
[384804778,1757561440159,-480.0,0.00013928,2]
[384804779,1757561440168,-480.0,0.00013928,2]
[384804780,1757561440177,-486.99642278,0.00013928,2]
[384804781,1757561440186,-484.62083709,0.00013928,2]
[384804782,1757561440195,-483.2426694,0.00013928,2]
[384804783,1757561440204,-480.97780934,0.00013928,2]
[384804784,1757561440214,-480.0,0.00013929,2]
[384804785,1757561440222,-480.0,0.00013929,2]
[384804786,1757561440231,-486.60764504,0.00013929,2]
[384804787,1757561440240,-480.0,0.00013929,2]
[384804788,1757561440250,-480.0,0.00013929,2]
[384804789,1757561440259,-485.58333741,0.00013929,2]
[384804790,1757561440269,-484.22043399,0.00013929,2]
[384804791,1757561440278,-485.45611007,0.00013929,2]
[384804792,1757561440287,-492.29337286,0.00013929,2]
[384804793,1757561440295,-489.92362068,0.00013929,2]
[384804794,1757561440304,-403.40003242,0.00013929,2]
[384804795,1757561440314,-483.8747198,0.00013929,2]
[384804796,1757561440322,-480.0,0.00013929,2]
[384804797,1757561440332,-480.0,0.00013929,2]
[384804798,1757561440341,-483.64291365,0.00013929,2]
[384804799,1757561440350,-487.46149923,0.00013929,2]
[384804800,1757561440360,-487.04581008,0.00013929,2]
[384804801,1757561440369,-483.32942337,0.00013929,2]
[384804802,1757561440379,-483.96247478,0.00013929,2]
[384804803,1757561440388,-484.16517054,0.00013929,2]
[384804804,1757561440398,-489.0594772,0.00013929,2]
[384804805,1757561440407,-485.16013259,0.00013929,2]
[384804806,1757561440417,-468.34308271,0.00013929,2]
[384804807,1757561440427,-480.0,0.00013929,2]
[384804808,1757561440436,-484.28563398,0.00013929,2]
[384804809,1757561440446,-484.78370495,0.00013929,2]
[384804810,1757561440456,-488.25035594,0.00013929,2]
[384804811,1757561440465,-600.49,0.00013929,2]
[384804812,1757561440475,-442.46378549,0.00013929,2]
[384804813,1757561440484,-487.06184262,0.00013929,2]
[384804814,1757561440493,-480.0,0.00013929,2]
[384804815,1757561440503,-480.0,0.00013929,2]
[384804816,1757561440512,-480.0,0.00013929,2]
[384804817,1757561440521,-490.27,0.00013929,2]
[384804818,1757561440531,-450.40856452,0.00013929,2]
[384804819,1757561440541,-480.0,0.00013929,2]
[384804820,1757561440550,-480.0,0.00013929,2]
[384804821,1757561440559,-480.0,0.00013929,2]
[384804822,1757561440569,-480.0,0.00013929,2]
[384804823,1757561440578,-493.86453187,0.00013929,2]
[384804824,1757561440588,-485.73446441,0.00013929,2]
[384804825,1757561440600,-489.78435179,0.00013929,2]
[384804826,1757561440609,-484.23117993,0.00013929,2]
[384804827,1757561440618,-480.0,0.00013929,2]
[384804828,1757561440628,-504.28,0.00013929,2]
[384804829,1757561440637,-480.0,0.00013929,2]
[384804830,1757561440646,-484.72677286,0.00013929,2]
[384804831,1757561440655,-484.65307674,0.00013929,2]
[384804832,1757561440664,-480.0,0.00013929,2]
[384804833,1757561440674,-480.0,0.00013929,2]
[384804834,1757561440683,-480.0,0.00013929,2]
[384804835,1757561440692,-489.77966405,0.00013929,2]
[384804836,1757561440701,-485.76738993,0.00013929,2]
[384804837,1757561440710,-1088.1,0.00013929,2]
[384804838,1757561440724,-480.0,0.00013929,2]
[384804839,1757561440737,-615.25745595,0.00013929,2]
[384804840,1757561440746,-488.16805173,0.00013929,2]
[384804841,1757561440755,-246.6401179,0.00013929,2]
[384804842,1757561440765,-480.0,0.00013929,2]
[384804843,1757561440774,-485.44277962,0.00013929,2]
[384804844,1757561440784,-487.24045903,0.00013929,2]
[384804845,1757561440793,-480.0,0.00013929,2]
[384804846,1757561440802,-483.95373645,0.00013929,2]
[384804847,1757561440811,-256.23935949,0.00013929,2]
[384804848,1757561440821,-484.08608039,0.00013929,2]
[384804849,1757561440830,-480.0,0.00013929,2]
[384804850,1757561440840,-490.34496325,0.00013929,2]
[384804851,1757561440850,-480.0,0.00013929,2]
[384804852,1757561440859,-504.0907664,0.00013929,2]
[384804853,1757561440868,-201.99282993,0.00013929,2]
[384804854,1757561440878,-480.0,0.00013929,2]
[384804855,1757561440888,-480.0,0.00013929,2]
[384804856,1757561440897,-480.0,0.00013929,2]
[384804857,1757561440907,-483.50982606,0.00013929,2]
[384804858,1757561440916,-2067.31,0.00013929,2]
[384804859,1757561440926,-484.98012231,0.00013929,2]
[384804860,1757561440935,-623.83042931,0.00013929,2]
[384804861,1757561440948,-480.0,0.00013929,2]
[384804862,1757561440957,-504.31588671,0.00013929,2]
[384804863,1757561440967,-481.05309684,0.00013929,2]
[384804864,1757561440976,-480.24252464,0.00013929,2]
[384804865,1757561440986,-480.0,0.00013929,2]
[384804866,1757561440995,-480.0,0.00013929,2]
[384804867,1757561441005,-480.0,0.00013929,2]
[384804868,1757561441014,-160.81098698,0.00013929,2]
[384804869,1757561441024,-480.0,0.0001393,2]
[384804870,1757561441034,-486.01820277,0.0001393,2]
[384804871,1757561441043,-484.70002267,0.0001393,2]
[384804872,1757561441053,-488.24811571,0.0001393,2]
[384804873,1757561441062,-483.96929519,0.0001393,2]
[384804874,1757561441071,-483.05911212,0.0001393,2]
[384804875,1757561441081,-482.22922639,0.0001393,2]
[384804876,1757561441090,-483.10708318,0.0001393,2]
[384804877,1757561441099,-487.34849439,0.0001393,2]
[384804878,1757561441108,-482.5867394,0.0001393,2]
[384804879,1757561441118,-481.37419525,0.0001393,2]
[384804880,1757561441128,-482.00302386,0.0001393,2]
[384804881,1757561441137,-482.85174063,0.0001393,2]
[384804882,1757561441146,-481.45225671,0.0001393,2]
[384804883,1757561441156,-482.69906923,0.0001393,2]
[384804884,1757561441165,-481.98663594,0.0001393,2]
[384804885,1757561441174,-486.20368245,0.0001393,2]
[384804886,1757561441184,-480.0,0.0001393,2]
[384804887,1757561441193,-482.36706191,0.0001393,2]
[384804888,1757561441203,-484.0694907,0.0001393,2]
[384804889,1757561441212,-481.99056036,0.0001393,2]
[384804890,1757561441221,-489.51028133,0.0001393,2]
[384804891,1757561441230,-485.45802108,0.0001393,2]
[384804892,1757561441239,-484.46510874,0.0001393,2]
[384804893,1757561441249,-482.15895656,0.0001393,2]
[384804894,1757561441258,-488.21354831,0.0001393,2]
[384804895,1757561441268,-483.93690979,0.0001393,2]
[384804896,1757561441277,-486.34356589,0.0001393,2]
[384804897,1757561441287,-483.09845549,0.0001393,2]
[384804898,1757561441401,-484.19470636,0.0001393,2]
[384804899,1757561441411,-485.78746594,0.0001393,2]
[384804900,1757561441420,-242.66367492,0.0001393,2]
[384804901,1757561441430,-488.6076257,0.0001393,2]
[384804902,1757561441440,-486.5927166,0.0001393,2]
[384804903,1757561441449,-479.83120372,0.0001393,2]
[384804904,1757561441459,-402.57820567,0.0001393,2]
[384804905,1757561441468,-483.66539471,0.0001393,2]
[384804906,1757561441477,-482.64625359,0.0001393,2]
[384804907,1757561441486,-492.65228231,0.0001393,2]
[384804908,1757561441495,-486.52971701,0.0001393,2]
[384804909,1757561441504,-489.06694637,0.0001393,2]
[384804910,1757561441514,-192.55961671,0.0001393,2]
[384804911,1757561441523,-480.0,0.0001393,2]
[384804912,1757561441533,-484.23720514,0.0001393,2]
[384804913,1757561441542,-484.12347917,0.0001393,2]
[384804914,1757561441552,-480.0,0.0001393,2]
[384804915,1757561441562,-480.0,0.0001393,2]
[384804916,1757561441571,-480.0,0.0001393,2]
[384804917,1757561441580,-480.0,0.0001393,2]
[384804918,1757561441589,-480.0,0.0001393,2]
[384804919,1757561441598,-480.0,0.0001393,2]
[384804920,1757561441606,-482.4367576,0.0001393,2]
[384804921,1757561441615,-560.04,0.0001393,2]
[384804922,1757561441624,-480.0,0.0001393,2]
[384804923,1757561441633,-484.46459131,0.0001393,2]
[384804924,1757561441642,-483.2207221,0.0001393,2]
[384804925,1757561441656,-480.0,0.0001393,2]
[384804926,1757561441665,-645.23,0.0001393,2]
[384804927,1757561441674,-480.0,0.0001393,2]
[384804928,1757561441682,-480.0,0.0001393,2]
[384804929,1757561441691,-488.2469199,0.0001393,2]
[384804930,1757561441701,-484.7268432,0.0001393,2]
[384804931,1757561441711,-480.0,0.0001393,2]
[384804932,1757561441720,-489.25334105,0.0001393,2]
[384804933,1757561441729,-480.83900408,0.0001393,2]
[384804934,1757561441738,-810.08,0.0001393,2]
[384804935,1757561441747,-480.0,0.0001393,2]
[384804936,1757561441757,-493.20641704,0.0001393,2]
[384804937,1757561441766,-480.0,0.0001393,2]
[384804938,1757561441775,-481.98934356,0.0001393,2]
[384804939,1757561441785,-480.0,0.0001393,2]
[384804940,1757561441794,-491.01498792,0.0001393,2]
[384804941,1757561441803,-2392.02,0.0001393,2]
[384804942,1757561441813,-480.0,0.0001393,2]
[384804943,1757561441822,-480.0,0.0001393,2]
[384804944,1757561441831,-578.52921062,0.0001393,2]
[384804945,1757561441841,-481.56169896,0.0001393,2]
[384804946,1757561441850,-151.0,0.0001393,2]
[384804947,1757561441859,-168.553967,0.0001393,2]
[384804948,1757561441868,-480.0,0.0001393,2]
[384804949,1757561441878,-480.0,0.0001393,2]
[384804950,1757561441892,-480.0,0.0001393,2]
[384804951,1757561441903,-486.17195976,0.0001393,2]
[384804952,1757561441912,-480.0,0.0001393,2]
[384804953,1757561441921,-480.0,0.0001393,2]
[384804954,1757561441930,-480.0,0.0001393,2]
[384804955,1757561441942,-480.0,0.0001393,2]
[384804956,1757561441952,-2000.0,0.00013931,2]
[384804957,1757561441962,-2000.0,0.00013931,2]
[384804958,1757561441972,-2000.0,0.00013931,2]
[384804959,1757561441982,-2000.0,0.00013931,2]
[384804960,1757561441993,-2000.0,0.00013931,2]
[384804961,1757561442002,-260.783,0.00013931,2]
[384804962,1757561442012,-2000.0,0.00013931,2]
[384804963,1757561442022,-2000.0,0.00013931,2]
[384804964,1757561442032,-2000.0,0.00013931,2]
[384804965,1757561442041,-2000.0,0.00013931,2]
[384804966,1757561442051,-2000.0,0.00013931,2]
[384804967,1757561442060,-2000.0,0.00013931,2]
[384804968,1757561442069,-2000.0,0.00013931,2]
[384804969,1757561442080,-1350.704,0.00013931,2]
[384804970,1757561442089,-2000.0,0.00013931,2]
[384804971,1757561442098,-151.0,0.00013931,2]
[384804972,1757561442107,-200.0,0.00013935,2]
[384804973,1757561442116,-496.50034375,0.00013936,2]
[384804974,1757561442125,-482.58998288,0.00013936,2]
[384804975,1757561442137,-480.0,0.00013936,2]
[384804976,1757561442146,-490.30953989,0.00013936,2]
[384804977,1757561442155,-480.0,0.00013936,2]
[384804978,1757561442164,-480.0,0.00013936,2]
[384804979,1757561442174,-484.74172838,0.00013936,2]
[384804980,1757561442183,-480.0,0.00013936,2]
[384804981,1757561442192,-480.0,0.00013936,2]
[384804982,1757561442202,-485.9804753,0.00013936,2]
[384804983,1757561442211,-486.3569724,0.00013936,2]
[384804984,1757561442220,-480.0,0.00013936,2]
[384804985,1757561442229,-481.41898412,0.00013936,2]
[384804986,1757561442238,-481.10230366,0.00013936,2]
[384804987,1757561442247,-487.39592642,0.00013936,2]
[384804988,1757561442256,-524.6770388,0.00013936,2]
[384804989,1757561442265,-484.83803648,0.00013936,2]
[384804990,1757561442274,-487.32317842,0.00013936,2]
[384804991,1757561442283,-489.80325147,0.00013936,2]
[384804992,1757561442292,-487.33002802,0.00013936,2]
[384804993,1757561442301,-485.37232807,0.00013936,2]
[384804994,1757561442310,-480.0,0.00013936,2]
[384804995,1757561442319,-480.0,0.00013936,2]
[384804996,1757561442328,-896.5045927,0.00013936,2]
[384804997,1757561442337,-485.23081063,0.00013936,2]
[384804998,1757561442346,-424.22698653,0.00013936,2]
[384804999,1757561442356,-485.49624814,0.00013936,2]
[384805000,1757561442365,-480.0,0.00013936,2]
[384805001,1757561442375,-480.0,0.00013936,2]
[384805002,1757561442386,-480.0,0.00013936,2]
[384805003,1757561442396,-151.0,0.00013936,2]
[384805005,1757561442405,-480.0,0.00013937,2]
[384805006,1757561442415,-152.72225193,0.00013937,2]
[384805007,1757561442425,-20948.7029527,0.00013937,2]
[384805008,1757561442434,-480.0,0.00013937,2]
[384805009,1757561442443,-366.81534989,0.00013937,2]
[384805010,1757561442452,-482.62435536,0.00013937,2]
[384805011,1757561442462,-480.0,0.00013937,2]
[384805012,1757561442471,-7790.4450011,0.00013937,2]
[384805013,1757561442480,-480.0,0.00013937,2]
[384805014,1757561442489,-480.0,0.00013937,2]
[384805015,1757561442498,-480.0,0.00013937,2]
[384805016,1757561442507,-480.0,0.00013937,2]
[384805017,1757561442518,-480.0,0.00013937,2]
[384805018,1757561442527,-480.0,0.00013937,2]
[384805019,1757561442536,-480.0,0.00013937,2]
[384805020,1757561442546,-480.0,0.00013937,2]
[384805021,1757561442555,-480.53019877,0.00013937,2]
[384805022,1757561442565,-480.0,0.00013937,2]
[384805023,1757561442573,-486.58662312,0.00013937,2]
[384805024,1757561442583,-340.70144854,0.00013937,2]
[384805025,1757561442592,-490.68367732,0.00013937,2]
[384805026,1757561442601,-611.34365352,0.00013937,2]
[384805027,1757561442611,-468.81107681,0.00013937,2]
[384805028,1757561442620,-151.0,0.00013937,2]
[384805029,1757561442629,-153.23911285,0.00013938,2]
[384805030,1757561442638,-18522.61534086,0.0001399,2]
[384805032,1757561442648,-151.0,0.0001399,2]
[384805033,1757561442657,-2991.64139561,0.00014,2]
[384805034,1757561442666,-278.164781,0.00014031,2]
[384805035,1757561442675,-274.432,0.00014055,2]
[384805036,1757561442684,-10102.2050807,0.00014177,2]
[384805037,1757561442694,-151.0,0.000142,2]
[384805038,1757561442704,-451.95451554,0.00014201,2]
[384805039,1757561442713,-539.89,0.00014202,2]
[384805040,1757561442723,-230.52,0.00014202,2]
[384805041,1757561442732,-240.82,0.00014202,2]
[384805042,1757561442741,-480.0,0.00014202,2]
[384805043,1757561442750,-980.29,0.00014202,2]
[384805044,1757561442760,-620.98,0.00014202,2]
[384805045,1757561442769,-486.66357498,0.00014202,2]
[384805046,1757561442778,-487.03313062,0.00014202,2]
[384805047,1757561442788,-480.0,0.00014202,2]
[384805048,1757561442797,-553.88,0.00014202,2]
[384805049,1757561442807,-480.0,0.00014202,2]
[384805050,1757561442816,-480.0,0.00014202,2]
[384805051,1757561442825,-480.0,0.00014202,2]
[384805052,1757561442834,-586.44,0.00014202,2]
[384805053,1757561442843,-180.11093997,0.00014202,2]
[384805054,1757561442852,-440.6,0.00014202,2]
[384805055,1757561442862,-5549.77,0.00014202,2]
[384805056,1757561442871,-194.08,0.00014202,2]
[384805057,1757561442880,-397.82,0.00014202,2]
[384805058,1757561442890,-387.30890266,0.00014203,2]
[384805059,1757561442899,-480.0,0.00014203,2]
[384805060,1757561442909,-480.0,0.00014203,2]
[384805061,1757561442919,-480.0,0.00014203,2]
[384805062,1757561442928,-308.21583147,0.00014203,2]
[384805063,1757561442937,-608.22731101,0.00014203,2]
[384805064,1757561442952,-489.08505961,0.00014203,2]
[384805065,1757561442961,-480.0,0.00014203,2]
[384805066,1757561442971,-613.01,0.00014203,2]
[384805067,1757561442980,-501.02248597,0.00014203,2]
[384805068,1757561442992,-503.53387526,0.00014203,2]
[384805069,1757561443002,-490.72788625,0.00014203,2]
[384805070,1757561443011,-504.28,0.00014203,2]
[384805071,1757561443020,-486.49,0.00014203,2]
[384805072,1757561443029,-312.49870604,0.00014203,2]
[384805073,1757561443039,-480.0,0.00014203,2]
[384805074,1757561443048,-480.0,0.00014203,2]
[384805075,1757561443057,-1088.1,0.00014203,2]
[384805076,1757561443066,-188.59,0.00014203,2]
[384805077,1757561443076,-480.0,0.00014203,2]
[384805078,1757561443086,-2067.31,0.00014203,2]
[384805079,1757561443095,-230.23,0.00014203,2]
[384805080,1757561443104,-480.0,0.00014203,2]
[384805081,1757561443113,-163.47940054,0.00014203,2]
[384805082,1757561443122,-480.0,0.00014203,2]